Cogmind - Beta 16 @@@ ROGUE MODE // 2025.12.12 @ 14:32:31 Player: BottomOfTheSwamp Result: Destroyed by D-53 Grenadier with Mini Grenade Launcher Performance ------------- Evolutions (0) 0 Regions Visited (2) 400 Robots Destroyed (19) 95 Value Destroyed (297) 297 Prototype IDs (0) 0 Alien Tech Used (0) 0 Bonus (-9) -9 TOTAL SCORE: 783 Bonus ------- Friendly Fire -9 Cogmind --------- Core Integrity 0/250 Matter 232/300 Energy 75/100 System Corruption 0% Temperature Cool (0) Movement Core (200) Ox3 Location -10/Mines Parts ------- > --- POWER (1) -------- (None) > --- PROPULSION (2) --- (None) > --- UTILITY (2) ------ Small Storage Unit ECM Suite > --- WEAPON (2) ------- EM Pulse Gun Grenade Launcher > --- INVENTORY (8) ---- Assault Rifle Light Assault Rifle Grenade Launcher Datajack Peak State ------------ > --- POWER ------------ Light Ion Engine > --- PROPULSION ------- Aluminum Leg Aluminum Leg > --- UTILITY ---------- Small Storage Unit ECM Suite > --- WEAPON ----------- Assault Rifle Grenade Launcher > --- INVENTORY -------- EM Pulse Gun Light Assault Rifle Grenade Launcher Datajack [Rating: 7] Favorites ----------- Power Ion Engine Engine Ion Engine Propulsion Aluminum Leg Leg Aluminum Leg Utility Small Storage Unit Device ECM Suite Storage Small Storage Unit Weapon Assault Rifle Energy Gun EM Pulse Gun Ballistic Gun Assault Rifle Launcher Grenade Launcher Build | -11 -10 -10 ------- Run | Yrd Mat Min Slots Evolved . | . . . Power . | . . . Propulsion . | . . . Utility . | . . . Weapon . | . . . Parts Attached 12 | 6 3 3 Power 2 | 1 . 1 Engine 2 | 1 . 1 Core . | . . . Reactor . | . . . Propulsion 3 | 2 1 . Treads . | . . . Leg 3 | 2 1 . Wheel . | . . . Hover . | . . . Flight . | . . . Utility 2 | 1 . 1 Device 1 | . . 1 Storage 1 | 1 . . Processor . | . . . Hackware . | . . . Protection . | . . . Artifact . | . . . Weapon 5 | 2 2 1 Energy Gun 1 | 1 . . Energy Cannon . | . . . Ballistic Gun 2 | 1 1 . Ballistic Cannon . | . . . Launcher 2 | . 1 1 Special Weapon . | . . . Impact Weapon . | . . . Slashing Weapon . | . . . Piercing Weapon . | . . . Special Melee Weapon . | . . . Unidentified Prototypes . | . . . Parts Lost 5 | . 1 4 Power 2 | . . 2 Propulsion 3 | . 1 2 Utility . | . . . Weapon . | . . . Highest Loss Streak 3 | . 1 3 To Critical Strikes . | . . . Average Backups 2 | . 1 3 Power . | . . . Propulsion . | . . . Utility . | . . . Weapon 1 | . 1 2 Tool/Special . | . . . Unused Backups 1 | . . 1 Power . | . . . Propulsion . | . . . Utility . | . . . Weapon . | . . . Tool/Special 1 | . . 1 Average Slot Usage (%) 87 | . 84 89 Engine 9 | . 14 6 Leg 27 | . 27 28 Device 6 | . . 12 Storage 14 | . 14 14 Energy Gun 7 | . 9 6 Ballistic Gun 15 | . 16 14 Launcher 4 | . 2 6 Peak Build Rating 7 | 6 6 7 Average Rating 5 | 4 5 6 On Entrance 4 | . 6 6 Avg Prop Armor Cover (%) . | . . . Naked Turns . | . . . Heaviest Build 15 | 14 15 15 Greatest Support 20 | 20 20 20 Greatest Overweight (x) 1 | . 1 . Average Overweight (x) . | . . . Largest Inventory Capacity 8 | 8 8 8 Average Capacity 7 | 6 8 8 Most Carried 5 | 5 3 5 Average Carried 2 | . 1 3 Final Capacity 8 | 8 8 8 Final Carried 4 | . 2 4 Class Distribution -------------------- 100% | Mutant Dominant Class ---------------- Mutant | -10/Materials Mutant | -10/Mines Resources | -11 -10 -10 ----------- Run | Yrd Mat Min Matter Collected 584 | 225 237 122 Remotely . | . . . Salvage Created 476 | . 355 121 Parts 32 | . 21 11 Haulers Intercepted 1 | . 1 . Recyclers Shooed 4 | . 4 . Parts Field Recycled . | . . . Retrieved Matter . | . . . Parts Self-Destructed . | . . . Prevented . | . . . Parts Restored . | . . . Kills | -11 -10 -10 ------- Run | Yrd Mat Min Combat Hostiles Destroyed 15 | . 7 8 Guns 4 | . 4 . AOE 11 | . 3 8 Classes Destroyed 8 | . 7 1 Worker 2 | . 1 1 Builder 1 | . 1 . Hauler 1 | . 1 . Recycler 2 | . 1 1 Mechanic 1 | . 1 . Swarmer 7 | . 2 5 Grunt 5 | . 5 . Assembled 3 | . . 3 Best Kill Streak 6 | . 6 4 Combat Bots Only 3 | . 3 3 Max Kills in Single Turn 3 | . 3 2 Gunslinging . | . . . Exploded 2 | . 1 2 Melee . | . . . Uniques/NPCs Destroyed . | . . . Combat | -11 -10 -10 -------- Run | Yrd Mat Min Hostile Shots Fired 72 | . 51 21 Missed 13 | . 12 1 Hits 59 | . 39 20 Projectile 59 | . 39 20 AOE 10 | . . 10 Damage Taken 854 | . 408 446 Core 252 | . 67 185 Absorbed by Shields . | . . . Core Remaining (%) 100 | 100 . . Volleys Fired 61 | . 44 17 Largest 2 | . 2 2 Hottest 70 | . 60 70 Shots Fired 84 | . 64 20 Gun 68 | . 60 8 Cannon . | . . . Launcher 16 | . 4 12 Special . | . . . Kinetic 52 | . 47 5 Thermal . | . . . Explosive 16 | . 4 12 Electromagnetic 16 | . 13 3 Robot Hit Streak 9 | . 9 8 Robot Miss Streak 3 | . 3 2 Penetration Max . | . . . Secondary Targets . | . . . Shots Hit Robots 50 | . 40 10 Core Hits 35 | . 24 11 Critical Kills . | . . . Critical Parts Destroyed . | . . . Critical Strikes . | . . . Melee Attacks . | . . . Impact . | . . . Slashing . | . . . Piercing . | . . . Sneak Attacks . | . . . Combat Hostiles . | . . . Follow-up Attacks . | . . . Damage Inflicted 1293 | . 752 541 Guns 517 | . 467 50 Cannons . | . . . Explosions 768 | . 277 491 Melee . | . . . Ramming 8 | . 8 . Kinetic 413 | . 363 50 Thermal . | . . . Explosive 768 | . 277 491 Electromagnetic 104 | . 104 . Impact . | . . . Slashing . | . . . Piercing . | . . . Highest Corruption . | . . . Average Corruption . | . . . Corruption Purged . | . . . Corruption Blocked . | . . . Overload Shots . | . . . Overflow Damage 12 | . . 12 Projectiles . | . . . Explosions 12 | . . 12 Melee . | . . . Knockbacks . | . . . Impact . | . . . Kinetic . | . . . Secondary . | . . . Self-Inflicted Damage 41 | . 1 40 Shots 2 | . 1 1 Rammed . | . . . Targets Rammed 3 | . 3 . Kicked 3 | . 3 . Crushed . | . . . Highest Temperature 30 | . 30 . Average Temperature 12 | . 12 . Received Heat Transfer 165 | . 165 . Siege Activations . | . . . Martial Activations . | . . . Shielding Activations . | . . . Robots Disrupted . | . . . Combat Hostiles . | . . . Robots Corrupted . | . . . Combat Hostiles . | . . . Parts Fried . | . . . Impact Corruptions . | . . . Robots Melted . | . . . Combat Hostiles . | . . . Parts Melted . | . . . Heat Transferred . | . . . Parts Sabotaged . | . . . Parts Stolen . | . . . Parts Stripped . | . . . Power Chain Reactions . | . . . Alert | -11 -10 -10 ------- Run | Yrd Mat Min Maximum Alert Level . | . . . Low Security (%) 100 | 100 100 100 Level 1 . | . . . Level 2 . | . . . Level 3 . | . . . Level 4 . | . . . Level 5 . | . . . High Security . | . . . Max Security . | . . . Peak Influence 110 | . 109 110 Initial 39 | . . 39 Average 34 | . 29 42 Influence Increases 405 | . 234 171 Destroy 0b10 Robot/C 240 | . 140 100 Destroy 0b10 Robot/NC 35 | . 25 10 Destroy Leader 52 | . 32 20 Disable Machine 15 | . 15 . Destroy Structure 63 | . 22 41 Influence Decreases 405 | . 133 272 Entered New Map 62 | . . 62 Time Decay 319 | . 123 196 Lost Part 24 | . 10 14 Squads Dispatched 1 | . 1 . Investigation . | . . . Extermination . | . . . Reinforcement 1 | . 1 . Assault . | . . . Garrison . | . . . Intercept . | . . . Searches Triggered . | . . . Construction Impeded . | . . . Haulers Reinforced . | . . . Active Scanning Responses . | . . . Cargo Convoy Interrupts . | . . . Stealth | -11 -10 -10 --------- Run | Yrd Mat Min Distress Signals 3 | . 3 . Communications Jammed . | . . . Distress Signals . | . . . Times Spotted 34 | . 13 21 Peak Tracking Total 17 | . 6 17 Tactical Retreats . | . . . Traps | -11 -10 -10 ------- Run | Yrd Mat Min Traps Triggered . | . . . Indirectly . | . . . Trap Hack Attempts . | . . . Triggered . | . . . Disarmed . | . . . Reprogrammed . | . . . Reused . | . . . Traps Extracted . | . . . Installed . | . . . Triggered . | . . . Machines | -11 -10 -10 ---------- Run | Yrd Mat Min Machines Disabled 1 | . 1 . Max in Single Turn 1 | . 1 . Machines Repaired . | . . . Machines Dismantled . | . . . Machines Sabotaged . | . . . Overloaded Fab Kills . | . . . Hacking | -11 -10 -10 --------- Run | Yrd Mat Min Machines Accessed . | . . . Terminals . | . . . Fabricators . | . . . Repair Stations . | . . . Recycling Units . | . . . Scanalyzers . | . . . Garrison Access . | . . . Total Hacks . | . . . Successful . | . . . Failed . | . . . Catastrophic . | . . . Database Lockouts . | . . . Manual . | . . . Terminals . | . . . Fabricators . | . . . Repair Stations . | . . . Recycling Units . | . . . Scanalyzers . | . . . Garrison Access . | . . . Terminal Hacks . | . . . Fabricator Hacks . | . . . Repair Station Hacks . | . . . Recycling Unit Hacks . | . . . Scanalyzer . | . . . Garrison Access Hacks . | . . . Unauthorized Hacks . | . . . Terminals . | . . . Fabricators . | . . . Repair Stations . | . . . Recycling Units . | . . . Scanalyzers . | . . . Garrison Access . | . . . Data Cores Recovered . | . . . Used . | . . . Hacking Detections . | . . . Full Trace Events . | . . . Feedback Events . | . . . Feedback Blocked . | . . . Robot Schematics Acquired . | . . . Robots Built . | . . . Authchips . | . . . Time . | . . . Total Robot Build Rating . | . . . Part Schematics Acquired . | . . . Parts Built . | . . . Authchips . | . . . Time . | . . . Total Part Build Rating . | . . . Part Studies Acquired . | . . . Parts Repaired . | . . . Time . | . . . Parts Recycled . | . . . Recycled Matter . | . . . Retrieved Matter . | . . . Retrieved Components . | . . . Parts Scanalyzed . | . . . Part Schematics Acquired . | . . . Parts Damaged . | . . . Bothacking | -11 -10 -10 ------------ Run | Yrd Mat Min Used RIF Installer . | . . . Robots Hacked . | . . . Non-combat . | . . . Combat . | . . . Robot Hacks Applied . | . . . Relay Couplers Released . | . . . Fabnet Peak Effective % . | . . . Robots Rewired . | . . . Allies Hacked . | . . . Hacks Repelled . | . . . Allies | -11 -10 -10 -------- Run | Yrd Mat Min Total Allies . | . . . Largest Group . | . . . Highest-Rated Group . | . . . Highest-Rated Ally . | . . . Total Orders . | . . . Ally Attacks . | . . . Total Damage . | . . . Kills . | . . . Allies Corrupted . | . . . Allies Melted . | . . . Intel | -11 -10 -10 ------- Run | Yrd Mat Min Active Infowar (turns) 23 | . . 23 ECM 23 | . . 23 Robot Analysis Total . | . . . Derelict Logs Recovered . | . . . Drone Launches . | . . . Drone Recoveries . | . . . Exploration | -11 -10 -10 ------------- Run | Yrd Mat Min Turns Passed 896 | 57 407 432 Spaces Moved 540 | 49 234 257 Core 19 | 19 . . Treads . | . . . Legs 521 | 30 234 257 Wheels . | . . . Hover . | . . . Flight . | . . . Fastest Speed 50 | 50 120 120 Average Speed 117 | 92 120 120 Slowest Speed 190 | 120 190 120 Overloaded Moves . | . . . Propulsion Burnouts . | . . . Robots Hopped . | . . . Potential Cave-ins . | . . . Cave-ins Triggered . | . . . Exploration Rate (%) 24 | 3 26 43 Regions Visited 2 Branch Regions 1 Pre-discovered Areas . | . . . Known Exits Taken . | . . . Unknown Exits Taken 2 | 1 1 . Scrap Searched 1 | . . 1 Spaces Dug . | . . . Terrain Destroyed 67 | . 22 45 Melee . | . . . Projectile . | . . . AOE 67 | . 22 45 Terrain Rammed . | . . . Walls Destroyed . | . . . Machines Disabled . | . . . Actions | -11 -10 -10 --------- Run | Yrd Mat Min Total 711 | 60 293 358 Wait 77 | . 4 73 Move 538 | 48 233 257 Hop . | . . . Pick Up 13 | 6 3 4 Fast Attach . | . . . Attach 9 | 6 1 2 Detach . | . . . Swap 10 | . 5 5 Drop . | . . . Fire 61 | . 44 17 Melee . | . . . Ram . | . . . Kick 3 | . 3 . Crush . | . . . Escape Stasis . | . . . Rewire . | . . . Trap . | . . . Miscellaneous . | . . . Route ------- -11/Scrapyard -10/Materials -10/Mines (discovered 1 exit: [*Mat]) History --------- Turn | Location | Event 2 | -11/Scrapyard | Met Revision 17 6 | -11/Scrapyard | Discovered new exit (range 15) 58 | -11/Scrapyard | Entered Materials 316 | -10/Materials | Build established: Mutant 444 | -10/Materials | Discovered new exit (range 7) 465 | -10/Materials | Entered Mines 493 | -10/Mines | Core integrity fell below 50% 519 | -10/Mines | Discovered new exit (range 8) 689 | -10/Mines | YI-UF0 nonchalantly dropped a Grenade Launcher on the ground 853 | -10/Mines | Assembled infested the area 897 | -10/Mines | Core integrity fell below 20% 897 | -10/Mines | Destroyed by D-53 Grenadier with Mini Grenade Launcher Last Messages --------------- 00859_ as-95546 destroyed. 00860_ as-49932 destroyed. 00860_ as-95279 destroyed. 00862_ as-50015 destroyed. 00863_ Destroyed Asb. F-torch. 00863_ as-16594 destroyed. 00864_ The unstable cave ceiling collapses. 00864_ as-09130 destroyed. 00865_ The unstable cave ceiling collapses. 00865_ as-64115 destroyed. 00869_ The unstable cave ceiling collapses. 00870_ K-01 Serf collects debris. 00875_ Acquired 43 matter. 00885_ C-45 Heavy ARC bursts open, deploying its payload. 00885_ D-53 Grenadier unfolds itself. 00886_ K-01 Serf collects debris. 00890_ YI-UF0: "Whaaaaaaaa!" 00891_ Aluminum Leg destroyed. 00891_ Lgt. Ion Engine destroyed. 00895_ Aluminum Leg destroyed. Map ----- +----------------------------------------------------+ | ?????????????????????????????????????????????????? | | ?????????????????????????????????????????????????? | | ?????????????????????????????????????????????????? | | ?????????????????????????????????????????????????? | | ?????????????????????????????????????????????????? | | ?????????????????????????????????????????????????? | | ?????????????????????????????????????????????????? | | ?????????????????????????????????????????????????? | | ?????????????????????????????????????????????????? | | ?????????????????????????????????????????????????? | | ?????????????????????????????????????????????????? | | ?????????????????????????????????????????????????? | | ?????????????????????????????????????????????????? | | ?????????????????????????????????????????????????? | | ??????????????????????????????? ?????????????????? | | ??????????????????????????????? ?????????????????? | | ??????????????????????????????? ?????????????????? | | ?????????????????????????????? #?????????????????? | | ????????????? ???????????????? #?????????????????? | | ?????????????? ?????????????? ####??????????????? | | ???????????????# ?????####### ##?????????????? | | ????????????????# ##### #?????????????? | | ????????????????# < #?????????????? | | ????????????????# #?????????????? | | ???????????????? """ #?????????????? | | ???????????????? """ @ #?????????????? | | ???????????????? """ g #####?????????? | | ??????????????? ??????? | | ??????????????## ## % ??????? | | ???????????????##???### # #####???????? | | ??????????????????????### #???????????? | | ??????????????????????## ##???????????? | | ???????????? ########## [ #?#????????????? | | ??????????# #??????????????? | | ?????? #??# dd #??????????????? | | ?????? ##?########## ??????????????? | | ?????? #??????????# ####?????????????? | | ?????? #####??????# ????????????????? | | ?????? ???????# # ????????????????? | | ??????# ??????# ## ##???????????????? | | ??????# ??????# ??# ##??????????????? | | ??????# #?????# ????# #??????????????? | | ??????# #?????## ????## #??????????????? | | #????## ???????##??????### ##??????????????? | | ????# #?????????????????# ###???????????????? | | ???## #?###?????????????# #?????????????????? | | #### ## #???????####### #?????????????????? | | #???????# ##????????????????? | | #???????# ##### ##???????????????? | | ##???????# #???# #???????????????? | +----------------------------------------------------+ Best States ------------- Heat Dissipation 25 Energy Generation 10 Energy Capacity 250 Matter Stores 300 Matter Capacity 300 Sight Range 16 Terrain Scan Density 10 ECM Strength 1 Evasion (%) 55 Item Schematics ----------------- None Robot Schematics ------------------ None Fabricated ------------ Nothing Repaired ---------- Nothing Studied --------- None Alien Tech Used ----------------- None Achievements -------------- None Challenges ------------ None Game ------ Seed LatentEfficiencyBarrier Manual? 0 Play Time 00:11:44 Cumulative 13.1 hours Start 2025.12.12 @ 14:22:19 End 2025.12.12 @ 14:32:31 Sessions 1 Manual Loads 0 Difficulty Rogue Special Mode None Game No. 34 Rogue 34 Adventurer 0 Explorer 0 Win Type - Total 0 Types 0/0/0/0/0/0/0/0/0/0 Lore% 7 Gallery% 17 Achievement% 13 Wizard Run 0 Options --------- Layout 0 ASCII 0 Keyboard 0 Movement Arrows Keybinds 0 Fullscreen 1 Font 18/SmallcapsGlow Map View 76x50 Zoom Use 0% Tactical HUD 1 Map Filters NONE Filters NONE Steam 1 RUN: 5d4e0aab-a0e1-45df-a798-be7200667959